fUSD/lending_fUSD_20240215
["ID","MTS","AMOUNT","RATE_DAILY","PERIOD"]
[314120825,1708000232216,-291.39,0.000377,3]
[314120826,1708000232225,-291.39,0.000377,3]
[314120827,1708000232234,-291.39,0.000377,3]
[314120828,1708000232243,-291.39,0.000377,3]
[314120829,1708000232252,-168.96,0.00037792,2]
[314120830,1708000232261,-1107.46896157,0.000378,2]
[314120831,1708000232270,-2339.15420156,0.000378,2]
[314120832,1708000232279,-186.40190135,0.000378,12]
[314120833,1708000232288,-8227.0388519,0.000378,2]
[314120834,1708000232297,-1177.37574895,0.000378,8]
[314120835,1708000232306,-155.0,0.0003788,2]
[314120836,1708000232316,-1443.53437519,0.00037897,2]
[314120837,1708000232325,-208.1480439,0.00037899,10]
[314120838,1708000232334,-836.3132,0.000379,2]
[314120839,1708000232343,-129211.99954122,0.000379,2]
[314120844,1708000237501,-206.0,0.00035999,2]
[314120845,1708000237511,-5602.74492119,0.000379,2]
[314120846,1708000237523,-3320.95537795,0.000379,2]
[314120847,1708000237535,-966.87789357,0.000379,2]
[314120848,1708000237562,-4095.55516388,0.000379,2]
[314120849,1708000237573,-4584.34164408,0.000379,2]
[314120850,1708000237585,-97217.52545811,0.000379,2]
[314120851,1708000237594,-26873.7555975,0.000379,2]
[314120852,1708000237605,-252489.5726025,0.000379,2]
[314120853,1708000237614,-440.4191,0.000379,2]
[314120854,1708000237623,-711.0492,0.000379,2]
[314120855,1708000237632,-325.84714735,0.000379,2]
[314120856,1708000237641,-21827.49046025,0.000379,2]
[314120857,1708000237653,-2614.7562519,0.000379,2]
[314120858,1708000237685,-946.10790981,0.000379,2]
[314120934,1708000239993,-49925.30176739,0.000379,2]
[314120935,1708000240786,-922.15818341,0.000379,2]
[314120936,1708000240852,-18969.88842494,0.000379,2]
[314120937,1708000240862,-1473.10694344,0.000379,2]
[314120938,1708000240871,-153.70464917,0.000379,2]
[314120939,1708000240881,-190411.405995,0.0003799,2]
[314120940,1708000240891,-11548.27500152,0.00037997,2]
[314120941,1708000240900,-47823.90560108,0.00037999,5]
[314120942,1708000240912,-536.4975053,0.00037999,5]
[314120943,1708000240925,-326.63804592,0.00037999,5]
[314120944,1708000240937,-3094.39863243,0.00037999,5]
[314120945,1708000240948,-4128.63986883,0.00037999,5]
[314120946,1708000240960,-276.91951802,0.00037999,5]
[314120947,1708000240971,-29786.8285291,0.00037999,5]
[314120948,1708000240983,-2323.41,0.00037999,5]
[314120951,1708000242452,-126926.85077404,0.00037999,5]
[314120952,1708000242464,-2934.74707781,0.00037999,5]
[314120953,1708000242598,-1329.04595939,0.00037999,5]
[314120954,1708000242610,-2209.43155201,0.00037999,5]
[314120955,1708000242716,-986.06827491,0.00037999,5]
[314120977,1708000245472,-196.34508081,0.000379,2]
[314120978,1708000245483,-483.87719183,0.00037999,5]
[314120979,1708000245784,-37971.96204685,0.00037999,5]
[314120980,1708000245804,-791.65526421,0.00037999,5]
[314120981,1708000245817,-1643.58303841,0.00037999,5]
[314120982,1708000245834,-126962.65476633,0.00037999,5]
[314120983,1708000245845,-74395.92462543,0.00037999,5]
[314120984,1708000245856,-8555.95029066,0.00037999,5]
[314120985,1708000245867,-9843.49772058,0.00037999,5]
[314120986,1708000441496,5000.0,0.00025,7]
[314120987,1708000683605,20000.0,0.00025,7]
[314120996,1708001431596,-2013.64627203,0.0003,2]
[314120997,1708001431605,-255.82989943,0.00031,2]
[314120998,1708001431618,-77.17010057,0.00031,2]
[314120999,1708001431628,-250.0,0.00031,2]
[314121000,1708001431638,-333.0,0.00032,2]
[314121001,1708001431647,-158.73836044,0.000329,2]
[314121002,1708001431657,-206.0,0.00032999,2]
[314121003,1708001431668,-333.0,0.00033,2]
[314121004,1708001431677,-378.69754744,0.00033413,2]
[314121005,1708001431690,-417.44245256,0.00033413,2]
[314121006,1708001431832,-298.6,0.00033959,5]
[314121007,1708001431841,-161.73523886,0.00033963,5]
[314121008,1708001431851,-151.91,0.00033965,5]
[314121009,1708001431860,-152.33,0.0003397,5]
[314121010,1708001431869,-1568.82210558,0.00033975,10]
[314121011,1708001431880,-517.9614323,0.00033975,10]
[314121012,1708001431897,-651.63451527,0.00033975,10]
[314121013,1708001431908,-2318.46176639,0.00033975,10]
[314121014,1708001431919,-11817.39628442,0.00033975,10]
[314121015,1708001431929,-857.44969095,0.00033975,10]
[314121016,1708001431938,-934.10816892,0.00033975,10]
[314121017,1708001431947,-195.65,0.00034688,120]
[314121019,1708001431956,-857.61,0.00034694,2]
[314121021,1708001431965,-500.0,0.00034707,2]
[314121022,1708001431974,-250.0,0.00034723,2]
[314121024,1708001431983,-1042.2,0.00034737,2]
[314121026,1708001431992,-532.74,0.00034737,2]
[314121028,1708001432001,-200.0,0.00034807,2]
[314121030,1708001432010,-2000.0,0.00034807,2]
[314121031,1708001432019,-250.0,0.0003482,111]
[314121032,1708001432028,-1000.0,0.0003486,2]
[314121033,1708001432038,-2752.08,0.00034899,2]
[314121034,1708001432046,-1306.1,0.00034915,2]
[314121035,1708001432055,-169.32,0.00034922,2]
[314121036,1708001432064,-150.0,0.00034946,2]
[314121037,1708001432077,-23900.0,0.00034988,2]
[314121038,1708001432086,-222.0,0.00035,2]
[314121039,1708001432095,-2312.0,0.00035,7]
[314121040,1708001432104,-488.82,0.00035223,2]
[314121041,1708001432114,-180.12,0.00035292,10]
[314121042,1708001432123,-250.0,0.00035312,2]
[314121043,1708001432132,-158.73836043,0.00035384,2]
[314121044,1708001432141,-203.18,0.00035397,2]
[314121045,1708001432151,-206.0,0.00035454,7]
[314121046,1708001432160,-207.7,0.0003556,2]
[314121047,1708001432172,-796.14,0.00035677,2]
[314121048,1708001432181,-207.7,0.00035747,2]
[314121049,1708001432190,-207.7,0.00035935,2]
[314121050,1708001432199,-151.79,0.00035995,5]
[314121051,1708001432208,-3671.94,0.00036,5]
[314121052,1708001432218,-15988.0,0.00036,3]
[314121053,1708001432227,-2717.0,0.00036,3]
[314121054,1708001432237,-325.84714735,0.00036,2]
[314121055,1708001432247,-207.7,0.00036122,2]
[314121056,1708001432257,-1317.40873739,0.00036131,7]
[314121057,1708001432274,-288.26537982,0.00036131,7]
[314121058,1708001432285,-1254.66039161,0.00036131,7]
[314121059,1708001432296,-2721.40407711,0.00036131,7]
[314121060,1708001432308,-315.92859959,0.00036131,7]
[314121061,1708001432335,-5381.72960445,0.00036131,7]
[314121062,1708001432347,-956.32578198,0.00036131,7]
[314121064,1708001437758,-11569.27742805,0.00036131,7]
[314121065,1708001437768,-2335.21,0.00036165,2]
[314121066,1708001437777,-2752.08,0.0003619,2]
[314121067,1708001437786,-391.0,0.0003623,2]
[314121068,1708001437795,-996.72206544,0.00036263,2]
[314121069,1708001437804,-207.7,0.00036309,2]
[314121070,1708001437813,-800.0,0.00036329,2]
[314121071,1708001437823,-1000.0,0.00036363,5]
[314121072,1708001437831,-1000.0,0.00036363,5]
[314121073,1708001437841,-1000.0,0.00036363,5]
[314121074,1708001437850,-1000.0,0.00036363,5]
[314121075,1708001437859,-1000.0,0.00036363,5]
[314121076,1708001437868,-1000.0,0.00036363,5]
[314121077,1708001437877,-1000.0,0.00036363,5]
[314121078,1708001437886,-1000.0,0.00036363,5]
[314121079,1708001437895,-1000.0,0.00036363,5]
[314121080,1708001437904,-1000.0,0.00036363,5]
[314121081,1708001437913,-1000.0,0.00036363,5]
[314121082,1708001437923,-1000.0,0.00036363,5]
[314121083,1708001437932,-1000.0,0.00036363,5]
[314121084,1708001437941,-1000.0,0.00036363,5]
[314121085,1708001437950,-1000.0,0.00036363,5]
[314121086,1708001437959,-1000.0,0.00036363,5]
[314121087,1708001437968,-1000.0,0.00036363,5]
[314121088,1708001437977,-1000.0,0.00036363,5]
[314121089,1708001437986,-1000.0,0.00036363,5]
[314121090,1708001437995,-1000.0,0.00036363,5]
[314121092,1708001438004,-1000.0,0.00036363,5]
[314121094,1708001438013,-1000.0,0.00036363,5]
[314121095,1708001438022,-1000.0,0.00036363,5]
[314121097,1708001438031,-1000.0,0.00036363,5]
[314121099,1708001438040,-1000.0,0.00036363,5]
[314121101,1708001438049,-1000.0,0.00036363,5]
[314121103,1708001438058,-1000.0,0.00036363,5]
[314121105,1708001438067,-1000.0,0.00036363,5]
[314121107,1708001438077,-1000.0,0.00036363,5]
[314121109,1708001438086,-1000.0,0.00036363,5]
[314121111,1708001438095,-1000.0,0.00036363,5]
[314121113,1708001438104,-1000.0,0.00036363,5]
[314121114,1708001438113,-1000.0,0.00036363,5]
[314121116,1708001438124,-1000.0,0.00036363,5]
[314121119,1708001438133,-1000.0,0.00036363,5]
[314121120,1708001438142,-1000.0,0.00036363,5]
[314121122,1708001438152,-1000.0,0.00036363,5]
[314121124,1708001438161,-1000.0,0.00036363,5]
[314121127,1708001438175,-1000.0,0.00036363,5]
[314121129,1708001438184,-1000.0,0.00036363,5]
[314121131,1708001438193,-1000.0,0.00036363,5]
[314121132,1708001438202,-1000.0,0.00036363,5]
[314121135,1708001438213,-1000.0,0.00036363,5]
[314121137,1708001438223,-1000.0,0.00036363,5]
[314121138,1708001438231,-1138.0,0.00036363,5]
[314121140,1708001438241,-1000.0,0.00036363,5]
[314121142,1708001438251,-1000.0,0.00036363,5]
[314121145,1708001438260,-1000.0,0.00036363,5]
[314121147,1708001438269,-295.94512797,0.00036396,4]
[314121149,1708001438279,-1754.03993116,0.00036443,3]
[314121151,1708001438288,-482.36098107,0.00036443,3]
[314121153,1708001438297,-500.0,0.00036468,3]
[314121155,1708001438306,-207.7,0.00036496,2]
[314121157,1708001438315,-168.98,0.00036504,2]
[314121159,1708001438325,-1306.1,0.00036559,2]
[314121161,1708001438335,-207.7,0.00036683,2]
[314121163,1708001438345,-1000.0,0.00036687,5]
[314121165,1708001438355,-1000.0,0.00036687,5]
[314121167,1708001438364,-1000.0,0.00036687,5]
[314121169,1708001438374,-1000.0,0.00036687,5]
[314121171,1708001438383,-1000.0,0.00036687,5]
[314121173,1708001438392,-1000.0,0.00036687,5]
[314121175,1708001438402,-1000.0,0.00036687,5]
[314121177,1708001438411,-1000.0,0.00036687,5]
[314121179,1708001438423,-1000.0,0.00036687,5]
[314121181,1708001438432,-1000.0,0.00036687,5]
[314121183,1708001438442,-167.03,0.00036799,2]
[314121185,1708001438451,-207.7,0.0003687,2]
[314121187,1708001438460,-996.72206535,0.00036944,2]
[314121189,1708001438469,-155.0,0.0003697,2]
[314121191,1708001438480,-177.34,0.0003697,2]
[314121193,1708001438489,-504.85247061,0.0003697,2]
[314121195,1708001438499,-1500.0,0.00037,2]
[314121197,1708001438509,-207.7,0.00037057,2]
[314121199,1708001438518,-2100.66159963,0.00037111,7]
[314121201,1708001438527,-207.7,0.00037245,2]
[314121203,1708001438536,-158.18,0.00037396,120]
[314121205,1708001438545,-207.7,0.00037432,2]
[314121206,1708001438555,-167.73,0.00037433,2]
[314121207,1708001438564,-2752.08,0.00037482,2]
[314121208,1708001438574,-8070.0,0.000375,8]
[314121209,1708001438583,-5876.98244778,0.000375,2]
[314121210,1708001438593,-2083.5792,0.0003759,2]
[314121211,1708001438602,-1655.8679,0.0003759,2]
[314121212,1708001438611,-440.4191,0.0003759,2]
[314121213,1708001438621,-207.7,0.00037619,2]
[314121214,1708001438630,-996.72206535,0.00037625,2]
[314121215,1708001438640,-1030.20378027,0.00037697,8]
[314121217,1708001438649,-312.2975,0.000377,2]
[314121219,1708001438659,-601.45,0.000377,2]
[314121221,1708001438669,-711.0492,0.000377,2]
[314121223,1708001438678,-154.57,0.000377,3]
[314121225,1708001438688,-418.68,0.000377,3]
[314121227,1708001438697,-418.68,0.000377,3]
[314121229,1708001438706,-418.68,0.000377,3]
[314121231,1708001438716,-418.68,0.000377,3]
[314121233,1708001438726,-418.68,0.000377,3]
[314121235,1708001438736,-418.68,0.000377,3]
[314121236,1708001438746,-418.68,0.000377,3]
[314121237,1708001438755,-418.68,0.000377,3]
[314121238,1708001438764,-418.68,0.000377,3]
[314121239,1708001438774,-418.68,0.000377,3]
[314121240,1708001438783,-418.68,0.000377,3]
[314121241,1708001438793,-418.68,0.000377,3]
[314121242,1708001438802,-418.68,0.000377,3]
[314121243,1708001438811,-418.68,0.000377,3]
[314121244,1708001438821,-418.68,0.000377,3]
[314121245,1708001438830,-418.68,0.000377,3]
[314121246,1708001438839,-418.68,0.000377,3]
[314121247,1708001438848,-418.68,0.000377,3]
[314121248,1708001438858,-418.68,0.000377,3]
[314121249,1708001438867,-418.68,0.000377,3]
[314121250,1708001438876,-618.8102208,0.000377,2]
[314121251,1708001438885,-178.15624711,0.00037706,2]
[314121252,1708001438894,-50752.1721649,0.0003778,10]
[314121253,1708001438903,-172557.385361,0.0003779,10]
[314121254,1708001438912,-325.2156211,0.0003779,2]
[314121255,1708001438923,-610.88483688,0.00037797,2]
[314121256,1708001438931,-1000.0,0.00037799,2]
[314121257,1708001438941,-245000.0,0.000378,2]
[314121258,1708001438950,-100000.0,0.000378,2]
[314121259,1708001438959,-392.11016101,0.000378,2]
[314121260,1708001438969,-160.00503469,0.000378,2]
[314121261,1708001438978,-2342.321592,0.000378,2]
[314121262,1708001438987,-308.54054996,0.000378,2]
[314121263,1708001438997,-158.93406877,0.000378,2]
[314121264,1708001439006,-207.7,0.00037806,2]
[314121265,1708001439015,-156.29335066,0.00037809,2]
[314121266,1708001439025,-3369.69878808,0.00037819,2]
[314121267,1708001439034,-164.60010223,0.00037868,2]
[314121268,1708001439044,-158.73836043,0.00037868,2]
[314121269,1708001439053,-150.0,0.0003787,2]
[314121270,1708001439062,-150.0,0.0003787,2]
[314121271,1708001439072,-3733.91357654,0.00037879,11]
[314121272,1708001439081,-153.70464917,0.00037879,2]
[314121273,1708001439091,-325.2156211,0.0003789,2]
[314121274,1708001439100,-158.29197513,0.00037897,11]
[314121275,1708001439109,-30298.08441323,0.000379,2]
[314121276,1708001439123,-312.89027466,0.000379,2]
[314121277,1708001439143,-160833.93887211,0.000379,2]
[314121278,1708001439153,-206.0,0.00037908,12]
[314121279,1708001439164,-208.64440298,0.00037908,10]
[314121280,1708001439173,-796.14,0.00037941,2]
[314121281,1708001439183,-500.0,0.00037957,15]
[314121282,1708001439192,-500.0,0.00037957,15]
[314121283,1708001439202,-500.0,0.00037957,15]
[314121284,1708001439211,-500.0,0.00037957,15]
[314121285,1708001439221,-500.0,0.00037957,15]
[314121286,1708001439231,-500.0,0.00037957,15]
[314121287,1708001439240,-500.0,0.00037957,15]
[314121288,1708001439250,-500.0,0.00037957,15]
[314121289,1708001439259,-227.04351082,0.00037957,15]
[314121290,1708001439269,-500.0,0.00037957,15]
[314121291,1708001439279,-500.0,0.00037957,15]
[314121292,1708001439288,-500.0,0.00037957,15]
[314121293,1708001439297,-500.0,0.00037957,15]
[314121294,1708001439306,-500.0,0.00037957,15]
[314121295,1708001439315,-500.0,0.00037957,15]
[314121296,1708001439325,-500.0,0.00037957,15]
[314121297,1708001439334,-500.0,0.00037957,15]
[314121298,1708001439343,-152.4114712,0.00037957,15]
[314121299,1708001439352,-500.0,0.00037957,15]
[314121300,1708001439362,-500.0,0.00037957,15]
[314121301,1708001439371,-500.0,0.00037957,15]
[314121302,1708001439380,-500.0,0.00037957,15]
[314121303,1708001439389,-500.0,0.00037957,15]
[314121304,1708001439399,-500.0,0.00037957,15]
[314121305,1708001439408,-1296539.78673142,0.00037958,5]
[314121306,1708001439418,-476.79928078,0.00037958,3]
[314121307,1708001439427,-478612.283899,0.00037958,2]
[314121308,1708001439436,-170.23847736,0.00037968,2]
[314121309,1708001439446,-7701.37078645,0.00037968,2]
[314121310,1708001439457,-200.0,0.00037987,2]
[314121311,1708001439467,-207.07823707,0.0003799,2]
[314121312,1708001439477,-10000.0,0.0003799,10]
[314121313,1708001439569,-325.2156211,0.0003799,2]
[314121314,1708001439597,-207.7,0.00037993,2]
[314121315,1708001439608,-610.88483688,0.00037997,2]
[314121316,1708001439618,-256.61947179,0.00037998,30]
[314121317,1708001439628,-666.74119929,0.00037999,2]
[314121318,1708001439638,-3000.0,0.00037999,2]
[314121319,1708001439647,-100000.0,0.00038,8]
[314121320,1708001439657,-395804.606704,0.00038,15]
[314121321,1708001439668,-15000.0,0.00038,8]
[314121322,1708001439677,-150.0,0.00038,2]
[314121323,1708001439687,-12133.38917235,0.00038,2]
[314121324,1708001439700,-616.61925626,0.00038,2]
[314121325,1708001439709,-1000.0,0.00038,7]
[314121326,1708001439719,-1244.71947189,0.0003811,2]
[314121327,1708001439730,-180.0,0.00038143,2]
[314121328,1708001439740,-207.7,0.0003818,2]
[314121329,1708001439750,-1306.1,0.00038203,2]
[314121330,1708001439761,-157.31,0.00038225,2]
[314121331,1708001439771,-3733.91357643,0.00038237,11]
[314121332,1708001439781,-1030.20378027,0.00038269,8]
[314121333,1708001439791,-996.72206535,0.00038306,2]
[314121334,1708001439800,-155.0,0.0003834,2]
[314121335,1708001439810,-5000.0,0.00038356,2]
[314121336,1708001439819,-1000.0,0.00038356,2]
[314121337,1708001439829,-500.0,0.00038356,7]
[314121338,1708001439838,-3530.55,0.00038356,15]
[314121339,1708001439848,-207.7,0.00038367,2]
[314121340,1708001439857,-1148.90060198,0.000384,7]
[314121341,1708001439867,-1000.0,0.000384,2]
[314121342,1708001439877,-227.64625164,0.00038418,2]
[314121343,1708001439887,-157.31,0.00038437,2]
[314121344,1708001439897,-150.0,0.00038548,2]
[314121345,1708001439906,-207.7,0.00038555,2]
[314121346,1708001439916,-500.0,0.00038567,7]
[314121347,1708001439927,-3733.91357643,0.00038595,12]
[314121348,1708001439936,-5000.0,0.0003863,5]
[314121349,1708001439946,-1000.0,0.0003863,5]
[314121350,1708001439955,-391.0,0.0003864,2]
[314121351,1708001439964,-157.31,0.00038649,2]
[314121352,1708001439973,-207.7,0.00038742,2]
[314121353,1708001439983,-150.0,0.00038759,2]
[314121354,1708001439992,-2752.08,0.00038773,2]
[314121355,1708001440001,-500.0,0.00038778,7]
[314121356,1708001440011,-1000.0,0.000388,5]
[314121357,1708001440020,-1000.0,0.000388,5]
[314121358,1708001440029,-1000.0,0.000388,5]
[314121359,1708001440040,-1000.0,0.000388,5]
[314121360,1708001440050,-1000.0,0.000388,5]
[314121361,1708001440059,-154.57,0.000388,3]
[314121362,1708001440068,-154.57,0.000388,3]
[314121363,1708001440077,-418.68,0.000388,3]
[314121364,1708001440087,-418.68,0.000388,3]
[314121366,1708001440096,-418.68,0.000388,3]
[314121367,1708001440105,-418.68,0.000388,3]
[314121369,1708001440114,-418.68,0.000388,3]
[314121370,1708001440123,-418.68,0.000388,3]
[314121371,1708001440133,-418.68,0.000388,3]
[314121372,1708001440142,-418.68,0.000388,3]
[314121373,1708001440152,-418.68,0.000388,3]
[314121374,1708001440161,-418.68,0.000388,3]
[314121375,1708001440173,-418.68,0.000388,3]
[314121377,1708001440182,-418.68,0.000388,3]
[314121379,1708001440192,-418.68,0.000388,3]
[314121380,1708001440203,-418.68,0.000388,3]
[314121381,1708001440213,-418.68,0.000388,3]
[314121382,1708001440222,-418.68,0.000388,3]
[314121383,1708001440232,-418.68,0.000388,3]
[314121384,1708001440241,-418.68,0.000388,3]
[314121385,1708001440252,-418.68,0.000388,3]
[314121386,1708001440262,-418.68,0.000388,3]
[314121387,1708001440272,-153.71,0.00038821,2]
[314121388,1708001440282,-1030.20378027,0.0003884,9]
[314121389,1708001440292,-1000.0,0.00038859,10]
[314121390,1708001440301,-157.31,0.00038862,2]
[314121391,1708001440311,-300.0,0.00038869,2]
[314121392,1708001440320,-300.0,0.00038869,2]
[314121393,1708001440330,-300.0,0.00038869,2]
[314121394,1708001440339,-300.0,0.00038869,2]
[314121395,1708001440349,-300.0,0.00038869,2]
[314121396,1708001440358,-300.0,0.00038869,2]
[314121397,1708001440367,-300.0,0.00038869,2]
[314121398,1708001440376,-319.17669093,0.00038879,2]
[314121399,1708001440386,-5000.0,0.00038904,8]
[314121400,1708001440395,-1000.0,0.00038904,8]
[314121401,1708001440404,-154.555508,0.00038904,14]
[314121402,1708001440414,-500.0,0.00038909,120]
[314121403,1708001440426,-333.0,0.00038909,2]
[314121404,1708001440436,-1751.579423,0.00038909,30]
[314121405,1708001440446,-13188.50299122,0.00038909,2]
[314121406,1708001440455,-1000.0,0.00038918,10]
[314121407,1708001440465,-150.0,0.00038918,2]
[314121408,1708001440475,-207.7,0.00038929,2]
[314121409,1708001440485,-3733.91357643,0.00038953,12]
[314121410,1708001440494,-200.0,0.00038987,2]
[314121411,1708001440503,-996.72206535,0.00038987,2]
[314121412,1708001440513,-500.0,0.00038988,7]
[314121413,1708001440523,-150.0,0.00038999,2]
[314121414,1708001440532,-100000.0,0.00039,9]
[314121415,1708001440541,-90335.16589465,0.00039,7]
[314121416,1708001440554,-2614.7562519,0.00039,7]
[314121417,1708001440570,-14093.50126419,0.00039,7]
[314121418,1708001440583,-1830.11499999,0.00039,7]
[314121419,1708001440781,-150.56,0.00038356,2]
[314121420,1708001440791,-25989.44,0.00039,7]
[314121421,1708001440803,-2370.9047406,0.00039,7]
[314121422,1708001440815,-10748.73075365,0.00039,7]
[314121423,1708001441118,-1499.9885314,0.00039,7]
[314121432,1708001442708,-3278.53775442,0.00039,7]
[314121433,1708001442773,-218222.62433535,0.00039,7]
[314121434,1708001442783,-152.94624,0.00039,7]
[314121435,1708001442793,-12750.0,0.00039,2]
[314121436,1708001442802,-159.556018,0.00039,7]
[314121437,1708001442811,-151.0,0.00039,7]
[314121438,1708001442821,-151.0,0.00039,7]
[314121439,1708001442830,-191.019497,0.00039,7]
[314121440,1708001442839,-151.0,0.00039,7]
[314121441,1708001442849,-172.724711,0.00039,7]
[314121442,1708001442858,-151.0,0.00039,7]
[314121443,1708001442867,-152.748963,0.00039,7]
[314121444,1708001442875,-184.708903,0.00039,7]
[314121445,1708001442885,-151.0,0.00039,7]
[314121446,1708001442894,-171.083297,0.00039,7]
[314121447,1708001442902,-151.0,0.00039,7]
[314121448,1708001442912,-153.70464917,0.00039025,3]
[314121449,1708001442922,-151.0,0.00039052,7]
[314121450,1708001442931,-157.31,0.00039074,2]
[314121451,1708001442940,-2000.0,0.00039111,10]
[314121452,1708001442950,-207.7,0.00039116,2]
[314121453,1708001442959,-150.0,0.00039148,2]
[314121455,1708001442969,-150.0,0.00039188,2]
[314121456,1708001442978,-500.0,0.00039199,7]
[314121457,1708001442987,-1000.0,0.00039218,2]
[314121458,1708001442995,-167.89,0.0003926,2]
[314121459,1708001443004,-157.31,0.00039286,2]
[314121460,1708001443013,-3733.91357643,0.00039311,13]
[314121461,1708001443022,-618.8102208,0.00039352,2]
[314121462,1708001443031,-26657.7747,0.00039352,7]
[314121463,1708001443040,-12221.3851,0.00039352,2]
[314121464,1708001443049,-500.0,0.0003941,7]
[314121465,1708001443058,-1030.20378027,0.00039412,9]
[314121466,1708001443067,-610.88483688,0.00039449,2]
[314121467,1708001443076,-500.0,0.00039452,7]
[314121468,1708001443085,-500.0,0.00039452,7]
[314121469,1708001443095,-509.02657177,0.00039452,7]
[314121470,1708001443104,-187.33496323,0.00039452,7]
[314121471,1708001443113,-505.04790904,0.00039452,15]
[314121472,1708001443122,-501.81099762,0.00039452,7]
[314121473,1708001443131,-500.0,0.00039452,7]
[314121474,1708001443141,-296.91424138,0.00039452,7]
[314121476,1708001443151,-500.0,0.00039452,7]
[314121477,1708001443161,-558.68371816,0.00039452,7]
[314121478,1708001443175,-511.62156044,0.00039452,7]
[314121479,1708001443187,-524.35253935,0.00039452,7]
[314121480,1708001443196,-500.0,0.00039452,7]
[314121481,1708001443205,-502.63658136,0.00039452,7]
[314121482,1708001443214,-500.0,0.00039452,7]
[314121483,1708001443224,-500.0,0.00039452,7]
[314121484,1708001443232,-526.41607718,0.00039452,7]
[314121485,1708001443241,-449.70395486,0.00039452,7]
[314121486,1708001443252,-519.24028704,0.00039452,7]
[314121487,1708001443261,-500.0,0.00039452,7]
[314121488,1708001443270,-514.35349478,0.00039452,7]
[314121489,1708001443279,-310.30188606,0.00039452,7]
[314121490,1708001443288,-500.93866923,0.00039452,7]
[314121491,1708001443298,-500.0,0.00039452,7]
[314121492,1708001443307,-500.0,0.00039452,7]
[314121493,1708001443316,-500.0,0.00039452,7]
[314121494,1708001443326,-321.69648625,0.00039452,7]
[314121495,1708001443335,-500.2639986,0.00039452,7]
[314121496,1708001443344,-500.0,0.00039452,7]
[314121497,1708001443353,-502.89774857,0.00039452,7]
[314121498,1708001443363,-518.95348025,0.00039452,7]
[314121499,1708001443372,-502.1469545,0.00039452,7]
[314121500,1708001443381,-500.0,0.00039452,7]
[314121501,1708001443390,-500.0,0.00039452,7]
[314121502,1708001443399,-216.47896926,0.00039452,7]
[314121503,1708001443409,-500.0,0.00039452,7]
[314121504,1708001443418,-250.0,0.00039452,7]
[314121505,1708001443431,-515.80534666,0.00039452,7]
[314121506,1708001443440,-506.14005328,0.00039452,7]
[314121507,1708001443450,-500.0,0.00039452,7]
[314121508,1708001443460,-508.23824411,0.00039452,7]
[314121509,1708001443469,-500.0,0.00039452,7]
[314121510,1708001443478,-500.0,0.00039452,7]
[314121511,1708001443487,-500.0,0.00039452,7]
[314121512,1708001443496,-509.28967933,0.00039452,7]
[314121513,1708001443609,-510.79275836,0.00039452,7]
[314121514,1708001443619,-500.0,0.00039452,7]
[314121515,1708001443628,-500.0,0.00039452,7]
[314121516,1708001443638,-500.0,0.00039452,7]
[314121517,1708001443647,-509.82188529,0.00039452,7]
[314121518,1708001443656,-518.98371549,0.00039452,7]
[314121519,1708001443665,-388.92047623,0.00039452,7]
[314121520,1708001443675,-509.21958738,0.00039452,7]
[314121521,1708001443685,-500.0,0.00039452,7]
[314121522,1708001443694,-509.52539758,0.00039452,7]